Workbook

Sheet Score (hidden)
A1: Graded Element | B1: Possible Points | C1: Your Points | D1: Comments
A2: Fix Text Time Data in cells C14, C33 and D51. | B2: 5 | C2: =B2 -> 5 | D2: =IF(B2<>C2,S2,"") ->  | S2: Fix Text Time Data in cells C14, C33 and D51. You needed to add a space between the time value and the AM/PM.
A3: Use a lookup formula to get wage for each employee. Something like: =VLOOKUP(B7,$K$7:$L$13,2,0). You can NOT use copy and paste or use other manual methods like sorting. | B3: 7 | C3: 7 | D3: =IF(B3<>C3,S3,"") ->  | S3: You did not use a lookup formula to get wage for each employee. Something like: =VLOOKUP(B7,$K$7:$L$13,2,0) would work.
A4: Calculate Hours Worked with a formula like: =(D7-C7)*24 | B4: 5 | C4: 5 | S4: You needed to use a formula like: =(D7-C7)*24 to get the time value (Proportion of 24 hour day) to become Number of Hours Worked.
A5: Number Formatting, like Currency. | B5: 1 | C5: 1 | S5: You did not have Number Formatting, like Currency.
A6: Include your name in the file name, something like "Your Name Busn218Project01.xlsm". This is good file management, as we learned in Busn 216. | B6: 2 | C6: 2 | S6: You did not include your name in the file name, something like "Your Name Busn218Project01.xlsm" For future submissions, you must include your name in the file name. This is good file management, as we learned in Busn 216.
A7: Because it says "calculate the Total Gross Pay for all employees", you must use ROUND. The Number of Hours Worked have extraneous decimals that need to be rounded so that when we add all of the individual gross pay amounts the SUM function does not add the extraneous decimals and can therefore get the correct answer. Something like: =ROUND(F7*E7,2). The correct answer with rounding is: $9,587.42. If you don't round you get: $9,587.38. | B7: 5 | C7: 5 | S7: Because it says "calculate the Total Gross Pay for all employees", you must use ROUND. The Number of Hours Worked have extraneous decimals that need to be rounded so that when we add all of the individual gross pay amounts the SUM function does not add the extraneous decimals and can therefore get the correct answer. Something like: =ROUND(F7*E7,2). The correct answer with rounding is: $9,587.42. If you don't round you get: 9587.38.
A8: Create Summary Employee Table. PivotTable or SUMIFS. | B8: 5 | C8: =B8 -> 5 | S8: Other
C9: =IF(C10="Late",-0.25*SUM(C1:C8),"") ->  | D9: =IF($C$10="Late","Late","") -> 
A10: Total Possible: | B10: =SUM(B2:B8) -> 30 | D10: =IF($C$10="Late","In accordance with the syllabus, late points are subtracted from score (25%).","") -> 
C11: =SUM(C2:C9) -> 30

Sheet Project(1)
A1: Below are the two data sets: 1) Data set with times that employees have worked per day (Left Table) and 2) Table with Employee Wages (Right Table, Lookup Table).
A2: Your goals are:
A3: 1) Add a new column/s to the Data set with times that employees have worked per day and calculate the Gross Pay for each row in the data set, and then at the bottom calculate the Total Gross Pay for all employees.
A4: 2) Then, off to the side, create a report that shows the Total Gross Pay for each employee (either with SUMIFS function or a PivotTbale).
A5: You must create an effective and efficient solution.
A6: Your check figure for Total Gross Pay at the bottom of the column is: $9,587.42
A8: Date Worked | B8: Employee | C8: Time In | D8: Time Out | K8: Employee | L8: Hourly Wage
A9: 2016-04-11 | B9: Taneka Guess | C9: 08:00:00 | D9: 14:30:00 | K9: Taneka Guess | L9: 26.95
A10: 2016-04-11 | B10: Heriberto Cheek | C10: 08:00:00 | D10: 14:48:00 | K10: Heriberto Cheek | L10: 32.5
A11: 2016-04-11 | B11: Irina Valles | C11: 08:00:00 | D11: 16:00:00 | K11: Irina Valles | L11: 36.5
A12: 2016-04-11 | B12: Dick Condon | C12: 08:00:00 | D12: 14:36:00 | K12: Dick Condon | L12: 19.5
A13: 2016-04-11 | B13: Georgetta Mayes | C13: 09:00:00 | D13: 17:00:00 | K13: Georgetta Mayes | L13: 30
A14: 2016-04-11 | B14: Precious Pettis | C14: 09:00:00 | D14: 15:24:00 | K14: Precious Pettis | L14: 27.75
A15: 2016-04-11 | B15: Louetta Peoples | C15: 09:00:00 | D15: 15:12:00 | K15: Louetta Peoples | L15: 24
A16: 2016-04-12 | B16: Taneka Guess | C16: 7:30AM | D16: 14:54:00
A17: 2016-04-12 | B17: Heriberto Cheek | C17: 08:00:00 | D17: 16:00:00
A18: 2016-04-12 | B18: Irina Valles | C18: 09:00:00 | D18: 15:42:00
A19: 2016-04-12 | B19: Dick Condon | C19: 08:00:00 | D19: 14:42:00
A20: 2016-04-12 | B20: Georgetta Mayes | C20: 08:00:00 | D20: 15:24:00
A21: 2016-04-12 | B21: Precious Pettis | C21: 09:00:00 | D21: 17:00:00
A22: 2016-04-12 | B22: Louetta Peoples | C22: 07:30:00 | D22: 15:18:00
A23: 2016-04-13 | B23: Taneka Guess | C23: 08:00:00 | D23: 15:48:00
A24: 2016-04-13 | B24: Heriberto Cheek | C24: 09:00:00 | D24: 15:42:00
A25: 2016-04-13 | B25: Irina Valles | C25: 09:00:00 | D25: 16:00:00
A26: 2016-04-13 | B26: Dick Condon | C26: 09:00:00 | D26: 16:06:00
A27: 2016-04-13 | B27: Georgetta Mayes | C27: 09:00:00 | D27: 15:18:00
A28: 2016-04-13 | B28: Precious Pettis | C28: 09:00:00 | D28: 15:30:00
A29: 2016-04-13 | B29: Louetta Peoples | C29: 08:00:00 | D29: 15:12:00
A30: 2016-04-14 | B30: Taneka Guess | C30: 07:30:00 | D30: 13:36:00
A31: 2016-04-14 | B31: Heriberto Cheek | C31: 09:00:00 | D31: 15:54:00
A32: 2016-04-14 | B32: Irina Valles | C32: 08:00:00 | D32: 14:42:00
A33: 2016-04-14 | B33: Dick Condon | C33: 09:00:00 | D33: 16:54:00
A34: 2016-04-14 | B34: Georgetta Mayes | C34: 09:00:00 | D34: 16:18:00
A35: 2016-04-14 | B35: Precious Pettis | C35: 9:00AM | D35: 15:06:00
A36: 2016-04-14 | B36: Louetta Peoples | C36: 07:30:00 | D36: 14:06:00
A37: 2016-04-15 | B37: Taneka Guess | C37: 07:30:00 | D37: 13:48:00
A38: 2016-04-15 | B38: Heriberto Cheek | C38: 07:30:00 | D38: 13:36:00
A39: 2016-04-15 | B39: Irina Valles | C39: 09:00:00 | D39: 16:36:00
A40: 2016-04-15 | B40: Dick Condon | C40: 09:00:00 | D40: 15:12:00
A41: 2016-04-15 | B41: Georgetta Mayes | C41: 09:00:00 | D41: 15:06:00
A42: 2016-04-15 | B42: Precious Pettis | C42: 09:00:00 | D42: 16:54:00
A43: 2016-04-15 | B43: Louetta Peoples | C43: 08:00:00 | D43: 15:42:00
A44: 2016-04-18 | B44: Taneka Guess | C44: 09:00:00 | D44: 16:48:00
A45: 2016-04-18 | B45: Heriberto Cheek | C45: 09:00:00 | D45: 15:48:00
A46: 2016-04-18 | B46: Irina Valles | C46: 09:00:00 | D46: 15:54:00
A47: 2016-04-18 | B47: Dick Condon | C47: 07:30:00 | D47: 14:00:00
A48: 2016-04-18 | B48: Georgetta Mayes | C48: 07:30:00 | D48: 14:12:00
A49: 2016-04-18 | B49: Precious Pettis | C49: 08:00:00 | D49: 14:00:00
A50: 2016-04-18 | B50: Louetta Peoples | C50: 09:00:00 | D50: 15:00:00
A51: 2016-04-19 | B51: Taneka Guess | C51: 09:00:00 | D51: 16:30:00
A52: 2016-04-19 | B52: Heriberto Cheek | C52: 08:00:00 | D52: 15:36:00
A53: 2016-04-19 | B53: Irina Valles | C53: 08:00:00 | D53: 3:18PM
A54: 2016-04-19 | B54: Dick Condon | C54: 09:00:00 | D54: 15:24:00
A55: 2016-04-19 | B55: Georgetta Mayes | C55: 08:00:00 | D55: 14:24:00
A56: 2016-04-19 | B56: Precious Pettis | C56: 08:00:00 | D56: 14:18:00
A57: 2016-04-19 | B57: Louetta Peoples | C57: 09:00:00 | D57: 15:36:00

Sheet Project(1an) (hidden)
A1: Below are the two data sets: 1) Data set with times that employees have worked per day (Left Table) and 2) Table with Employee Wages (Right Table, Lookup Table).
A2: Your goals are:
A3: 1) Add a new column/s to the Data set with times that employees have worked per day and calculate the Gross Pay for each row in the data set, and then at the bottom calculate the Total Gross Pay for all employees.
A4: 2) Then, off to the side, create a report that shows the Total Gross Pay for each employee (either with SUMIFS function or a PivotTbale).
A5: You must create an effective and efficient solution.
A6: Your check figure for Total Gross Pay at the bottom of the column is: $9,587.42
A8: Date Worked | B8: Employee | C8: Time In | D8: Time Out | E8: Wage | F8: Hours Worked | G8: Gross Pay | I8: Not Rounded: | K8: Employee | L8: Hourly Wage
A9: 2016-04-11 | B9: Taneka Guess | C9: 08:00:00 | D9: 14:30:00 | E9: =VLOOKUP(B9,$K$9:$L$15,2,0) -> 26.95 | F9: =(D9-C9)*24 -> 6.5 | G9: =ROUND(F9*E9,2) -> 175.18 | I9: =F9*E9 -> 175.175 | K9: Taneka Guess | L9: 26.95
A10: 2016-04-11 | B10: Heriberto Cheek | C10: 08:00:00 | D10: 14:48:00 | E10: =VLOOKUP(B10,$K$9:$L$15,2,0) -> 32.5 | F10: =(D10-C10)*24 -> 6.8 | G10: =ROUND(F10*E10,2) -> 221 | I10: 221 | K10: Heriberto Cheek | L10: 32.5
A11: 2016-04-11 | B11: Irina Valles | C11: 08:00:00 | D11: 16:00:00 | E11: 36.5 | F11: 8 | G11: 292 | I11: 292 | K11: Irina Valles | L11: 36.5
A12: 2016-04-11 | B12: Dick Condon | C12: 08:00:00 | D12: 14:36:00 | E12: 19.5 | F12: 6.6 | G12: 128.7 | I12: 128.7 | K12: Dick Condon | L12: 19.5
A13: 2016-04-11 | B13: Georgetta Mayes | C13: 09:00:00 | D13: 17:00:00 | E13: 30 | F13: 8 | G13: 240 | I13: 240 | K13: Georgetta Mayes | L13: 30
A14: 2016-04-11 | B14: Precious Pettis | C14: 09:00:00 | D14: 15:24:00 | E14: 27.75 | F14: 6.4 | G14: 177.6 | I14: 177.6 | K14: Precious Pettis | L14: 27.75
A15: 2016-04-11 | B15: Louetta Peoples | C15: 09:00:00 | D15: 15:12:00 | E15: 24 | F15: 6.2 | G15: 148.8 | I15: 148.8 | K15: Louetta Peoples | L15: 24
A16: 2016-04-12 | B16: Taneka Guess | C16: 07:30:00 | D16: 14:54:00 | E16: 26.95 | F16: 7.4 | G16: 199.43 | I16: 199.43
A17: 2016-04-12 | B17: Heriberto Cheek | C17: 08:00:00 | D17: 16:00:00 | E17: 32.5 | F17: 8 | G17: 260 | I17: 260 | K17: Employee | L17: Gross
A18: 2016-04-12 | B18: Irina Valles | C18: 09:00:00 | D18: 15:42:00 | E18: 36.5 | F18: 6.7 | G18: 244.55 | I18: 244.55 | K18: Taneka Guess | L18: =SUMIFS($G$9:$G$57,$B$9:$B$57,K18) -> 1331.35
A19: 2016-04-12 | B19: Dick Condon | C19: 08:00:00 | D19: 14:42:00 | E19: 19.5 | F19: 6.7 | G19: 130.65 | I19: 130.65 | K19: Heriberto Cheek | L19: =SUMIFS($G$9:$G$57,$B$9:$B$57,K19) -> 1589.25
A20: 2016-04-12 | B20: Georgetta Mayes | C20: 08:00:00 | D20: 15:24:00 | E20: 30 | F20: 7.4 | G20: 222 | I20: 222 | K20: Irina Valles | L20: 1832.3
A21: 2016-04-12 | B21: Precious Pettis | C21: 09:00:00 | D21: 17:00:00 | E21: 27.75 | F21: 8 | G21: 222 | I21: 222 | K21: Dick Condon | L21: 924.3
A22: 2016-04-12 | B22: Louetta Peoples | C22: 07:30:00 | D22: 15:18:00 | E22: 24 | F22: 7.8 | G22: 187.2 | I22: 187.2 | K22: Georgetta Mayes | L22: 1446
A23: 2016-04-13 | B23: Taneka Guess | C23: 08:00:00 | D23: 15:48:00 | E23: 26.95 | F23: 7.8 | G23: 210.21 | I23: 210.21 | K23: Precious Pettis | L23: 1309.82
A24: 2016-04-13 | B24: Heriberto Cheek | C24: 09:00:00 | D24: 15:42:00 | E24: 32.5 | F24: 6.7 | G24: 217.75 | I24: 217.75 | K24: Louetta Peoples | L24: 1154.4
A25: 2016-04-13 | B25: Irina Valles | C25: 09:00:00 | D25: 16:00:00 | E25: 36.5 | F25: 7 | G25: 255.5 | I25: 255.5 | K25: Total | L25: =SUM(L18:L24) -> 9587.42
A26: 2016-04-13 | B26: Dick Condon | C26: 09:00:00 | D26: 16:06:00 | E26: 19.5 | F26: 7.1 | G26: 138.45 | I26: 138.45
A27: 2016-04-13 | B27: Georgetta Mayes | C27: 09:00:00 | D27: 15:18:00 | E27: 30 | F27: 6.3 | G27: 189 | I27: 189
A28: 2016-04-13 | B28: Precious Pettis | C28: 09:00:00 | D28: 15:30:00 | E28: 27.75 | F28: 6.5 | G28: 180.38 | I28: 180.375 | K28: Employee | L28: Sum of Gross Pay
A29: 2016-04-13 | B29: Louetta Peoples | C29: 08:00:00 | D29: 15:12:00 | E29: 24 | F29: 7.2 | G29: 172.8 | I29: 172.8 | K29: Dick Condon | L29: 924.3
A30: 2016-04-14 | B30: Taneka Guess | C30: 07:30:00 | D30: 13:36:00 | E30: 26.95 | F30: 6.1 | G30: 164.4 | I30: 164.395 | K30: Georgetta Mayes | L30: 1446
A31: 2016-04-14 | B31: Heriberto Cheek | C31: 09:00:00 | D31: 15:54:00 | E31: 32.5 | F31: 6.9 | G31: 224.25 | I31: 224.25 | K31: Heriberto Cheek | L31: 1589.25
A32: 2016-04-14 | B32: Irina Valles | C32: 08:00:00 | D32: 14:42:00 | E32: 36.5 | F32: 6.7 | G32: 244.55 | I32: 244.55 | K32: Irina Valles | L32: 1832.3
A33: 2016-04-14 | B33: Dick Condon | C33: 09:00:00 | D33: 16:54:00 | E33: 19.5 | F33: 7.9 | G33: 154.05 | I33: 154.05 | K33: Louetta Peoples | L33: 1154.4
A34: 2016-04-14 | B34: Georgetta Mayes | C34: 09:00:00 | D34: 16:18:00 | E34: 30 | F34: 7.3 | G34: 219 | I34: 219 | K34: Precious Pettis | L34: 1309.82
A35: 2016-04-14 | B35: Precious Pettis | C35: 09:00:00 | D35: 15:06:00 | E35: 27.75 | F35: 6.1 | G35: 169.28 | I35: 169.275 | K35: Taneka Guess | L35: 1331.35
A36: 2016-04-14 | B36: Louetta Peoples | C36: 07:30:00 | D36: 14:06:00 | E36: 24 | F36: 6.6 | G36: 158.4 | I36: 158.4 | K36: Grand Total | L36: 9587.42
A37: 2016-04-15 | B37: Taneka Guess | C37: 07:30:00 | D37: 13:48:00 | E37: 26.95 | F37: 6.3 | G37: 169.79 | I37: 169.785
A38: 2016-04-15 | B38: Heriberto Cheek | C38: 07:30:00 | D38: 13:36:00 | E38: 32.5 | F38: 6.1 | G38: 198.25 | I38: 198.25
A39: 2016-04-15 | B39: Irina Valles | C39: 09:00:00 | D39: 16:36:00 | E39: 36.5 | F39: 7.6 | G39: 277.4 | I39: 277.4
A40: 2016-04-15 | B40: Dick Condon | C40: 09:00:00 | D40: 15:12:00 | E40: 19.5 | F40: 6.2 | G40: 120.9 | I40: 120.9
A41: 2016-04-15 | B41: Georgetta Mayes | C41: 09:00:00 | D41: 15:06:00 | E41: 30 | F41: 6.1 | G41: 183 | I41: =F41*E41 -> 183
A42: 2016-04-15 | B42: Precious Pettis | C42: 09:00:00 | D42: 16:54:00 | E42: 27.75 | F42: 7.9 | G42: 219.23 | I42: 219.225
A43: 2016-04-15 | B43: Louetta Peoples | C43: 08:00:00 | D43: 15:42:00 | E43: 24 | F43: 7.7 | G43: 184.8 | I43: 184.8
A44: 2016-04-18 | B44: Taneka Guess | C44: 09:00:00 | D44: 16:48:00 | E44: 26.95 | F44: 7.8 | G44: 210.21 | I44: 210.21
A45: 2016-04-18 | B45: Heriberto Cheek | C45: 09:00:00 | D45: 15:48:00 | E45: 32.5 | F45: 6.8 | G45: 221 | I45: 221
A46: 2016-04-18 | B46: Irina Valles | C46: 09:00:00 | D46: 15:54:00 | E46: 36.5 | F46: 6.9 | G46: 251.85 | I46: 251.85
A47: 2016-04-18 | B47: Dick Condon | C47: 07:30:00 | D47: 14:00:00 | E47: 19.5 | F47: 6.5 | G47: 126.75 | I47: 126.75
A48: 2016-04-18 | B48: Georgetta Mayes | C48: 07:30:00 | D48: 14:12:00 | E48: 30 | F48: 6.7 | G48: 201 | I48: 201
A49: 2016-04-18 | B49: Precious Pettis | C49: 08:00:00 | D49: 14:00:00 | E49: 27.75 | F49: 6 | G49: 166.5 | I49: 166.5
A50: 2016-04-18 | B50: Louetta Peoples | C50: 09:00:00 | D50: 15:00:00 | E50: 24 | F50: 6 | G50: 144 | I50: 144
A51: 2016-04-19 | B51: Taneka Guess | C51: 09:00:00 | D51: 16:30:00 | E51: 26.95 | F51: 7.5 | G51: 202.13 | I51: 202.125
A52: 2016-04-19 | B52: Heriberto Cheek | C52: 08:00:00 | D52: 15:36:00 | E52: 32.5 | F52: 7.6 | G52: 247 | I52: 247
A53: 2016-04-19 | B53: Irina Valles | C53: 08:00:00 | D53: 15:18:00 | E53: 36.5 | F53: 7.3 | G53: 266.45 | I53: 266.45
A54: 2016-04-19 | B54: Dick Condon | C54: 09:00:00 | D54: 15:24:00 | E54: 19.5 | F54: 6.4 | G54: 124.8 | I54: 124.8
A55: 2016-04-19 | B55: Georgetta Mayes | C55: 08:00:00 | D55: 14:24:00 | E55: 30 | F55: 6.4 | G55: 192 | I55: 192
A56: 2016-04-19 | B56: Precious Pettis | C56: 08:00:00 | D56: 14:18:00 | E56: 27.75 | F56: 6.3 | G56: 174.83 | I56: 174.825
A57: 2016-04-19 | B57: Louetta Peoples | C57: 09:00:00 | D57: 15:36:00 | E57: 24 | F57: 6.6 | G57: 158.4 | I57: 158.4
F59: Total: | G59: =SUM(G9:G57) -> 9587.42 | I59: =SUM(I9:I57) -> 9587.38 | J59: <<== Incorrect Total
